Cogmind - Beta 14 @@@ ROGUE MODE // 2025.05.03 @ 20:29:58 Player: Polariusz Result: Destroyed by S-27 Virus with Autogun Performance ------------- Evolutions (3) 1500 Regions Visited (6) 1200 Robots Destroyed (67) 335 Value Destroyed (1730) 1730 Prototype IDs (2) 40 Alien Tech Used (0) 0 Bonus (380) 380 TOTAL SCORE: 5185 Bonus ------- Follower Combat Kills 80 Aligned with FarCom 300 Cogmind --------- Core Integrity 0/700 Matter 94/300 Energy 95/100 System Corruption 13% Temperature Cool (0) Movement Core (50) Location -7/Factory Parts ------- > --- POWER (2) -------- (None) > --- PROPULSION (2) --- (None) > --- UTILITY (7) ------ Advanced Targeting Computer > --- WEAPON (2) ------- Heavy Flail > --- INVENTORY (5) ---- Armored Wheel Hardened Heavy Armor Plating Gauss Rifle Peak State ------------ > --- POWER ------------ Improved Ion Engine Light Nuclear Core > --- PROPULSION ------- Armored Wheel Armored Wheel > --- UTILITY ---------- Improved Heat Sink Improved Cooling System Small Storage Unit Advanced Targeting Computer Advanced Targeting Computer Particle Charger Hardened Medium Armor Plating > --- WEAPON ----------- Gauss Rifle Gauss Cannon > --- INVENTORY -------- Armored Wheel Light Armor Plating Arc Projector Flak Gun Flak Cannon Heavy Rocket Launcher Heavy Rocket Launcher Heavy Flail [Rating: 39] Favorites ----------- Power Light Ion Engine Engine Light Ion Engine Power Core Light Nuclear Core Propulsion Armored Wheel Leg Aluminum Leg Wheel Armored Wheel Utility Small Storage Unit Device Heat Sink Storage Small Storage Unit Processor Advanced Targeting Computer Protection Light Armor Plating Weapon Spread Laser Energy Gun Spread Laser Energy Cannon EM Pulse Cannon Ballistic Gun Gauss Rifle Ballistic Cannon Flak Cannon Launcher Heavy Rocket Launcher Impact Weapon Heavy Flail Build | -11 -10 -10 -10 -9 -8 -7 ------- Run | Yrd Mat Min Exi Min Mat Fac Slots Evolved 6 | . . . . . 4 2 Power 1 | . . . . . . 1 Propulsion . | . . . . . . . Utility 5 | . . . . . 4 1 Weapon . | . . . . . . . Parts Attached 66 | 7 7 3 . 1 22 26 Power 8 | . 3 1 . 1 2 1 Engine 7 | . 3 1 . 1 2 . Core 1 | . . . . . . 1 Reactor . | . . . . . . . Propulsion 7 | 4 . 2 . . . 1 Treads . | . . . . . . . Leg 2 | 2 . . . . . . Wheel 5 | 2 . 2 . . . 1 Hover . | . . . . . . . Flight . | . . . . . . . Utility 16 | 1 2 . . . 9 4 Device 8 | . . . . . 5 3 Storage 1 | 1 . . . . . . Processor 3 | . 1 . . . 2 . Hackware . | . . . . . . . Protection 4 | . 1 . . . 2 1 Artifact . | . . . . . . . Weapon 35 | 2 2 . . . 11 20 Energy Gun 10 | 2 2 . . . 6 . Energy Cannon 2 | . . . . . 1 1 Ballistic Gun 4 | . . . . . 2 2 Ballistic Cannon 8 | . . . . . 2 6 Launcher 4 | . . . . . . 4 Special Weapon . | . . . . . . . Impact Weapon 7 | . . . . . . 7 Slashing Weapon . | . . . . . . . Piercing Weapon . | . . . . . . . Special Melee Weapon . | . . . . . . . Unidentified Prototypes . | . . . . . . . Parts Lost 11 | . . . . . 2 9 Power 2 | . . . . . . 2 Propulsion 2 | . . . . . . 2 Utility 5 | . . . . . 2 3 Weapon 2 | . . . . . . 2 Highest Loss Streak 6 | . . . . . 1 6 To Critical Strikes . | . . . . . . . Average Slot Usage (%) 87 | . 95 100 100 100 84 85 Engine 8 | . 14 14 14 14 9 2 Core 1 | . . . . . . 3 Wheel 19 | . 28 28 28 28 18 14 Device 13 | . . . . . 17 18 Storage 9 | . 14 14 14 14 9 6 Processor 7 | . 8 . . . 3 14 Protection 8 | . 1 14 14 14 8 6 Energy Gun 12 | . 27 28 28 28 14 . Ballistic Gun 2 | . . . . . 1 4 Ballistic Cannon 1 | . . . . . 1 3 Impact Weapon 1 | . . . . . . 5 Peak Build Rating 39 | 5 11 12 12 12 29 39 Average Rating 21 | 3 7 11 12 12 17 35 On Entrance 11 | . 5 10 12 12 12 28 Naked Turns . | . . . . . . . Heaviest Build 46 | 9 17 17 17 17 34 46 Greatest Support 24 | 20 20 24 24 24 24 24 Greatest Overweight (x) 1 | . . . . . 1 1 Average Overweight (x) . | . . . . . . . Largest Inventory Capacity 8 | 8 8 8 8 8 8 8 Average Capacity 7 | 6 8 8 8 8 8 7 Most Carried 8 | 4 8 8 8 8 8 8 Average Carried 7 | 1 5 7 8 8 7 7 Final Capacity 8 | 8 8 8 8 8 8 5 Final Carried 8 | 2 8 8 8 8 8 4 Class Distribution -------------------- 90% | Mutant 9% | Scavenger-Mutant Dominant Class ---------------- Mutant | -10/Materials Mutant | -10/Mines Mutant | -10/Exiles Mutant | -9/Mines Mutant | -8/Materials Mutant | -7/Factory Resources | -11 -10 -10 -10 -9 -8 -7 ----------- Run | Yrd Mat Min Exi Min Mat Fac Matter Collected 1094 | 270 51 56 . 10 249 458 Remotely . | . . . . . . . Salvage Created 1682 | . 130 216 . 88 722 526 Parts 102 | . 21 13 . 8 42 18 Haulers Intercepted . | . . . . . . . Recyclers Shooed 2 | . . 1 . . 1 . Parts Field Recycled . | . . . . . . . Retrieved Matter . | . . . . . . . Parts Self-Destructed . | . . . . . . . Prevented . | . . . . . . . Kills | -11 -10 -10 -10 -9 -8 -7 ------- Run | Yrd Mat Min Exi Min Mat Fac Combat Hostiles Destroyed 50 | . 7 8 . 3 22 10 Melee 1 | . . . . . . 1 Guns 39 | . 7 8 . 3 19 2 Cannons 8 | . . . . . 3 5 AOE 2 | . . . . . . 2 Classes Destroyed 14 | . 3 1 . 1 4 5 Worker 2 | . . . . . . 2 Builder 4 | . . . . . . 4 Recycler 6 | . . 1 . . 2 3 Operator 1 | . . . . . 1 . Watcher 4 | . 1 . . . 1 2 Swarmer 22 | . 6 6 . . 10 . Grunt 12 | . 1 2 . 2 4 3 Brawler 1 | . . . . . 1 . Duelist 1 | . . . . 1 . . Protector 1 | . . . . . . 1 Sentry 6 | . . . . . 6 . Specialist 2 | . . . . . . 2 Hunter 3 | . . . . . 1 2 Programmer 2 | . . . . . . 2 Best Kill Streak 9 | . 6 3 . 3 4 9 Combat Bots Only 6 | . 6 3 . 3 4 4 Max Kills in Single Turn 3 | . 2 1 . 1 2 3 Gunslinging 1 | . 1 . . . 1 . Exploded 1 | . . . . . . 1 Melee 1 | . . . . . . 1 Uniques/NPCs Destroyed . | . . . . . . . Combat | -11 -10 -10 -10 -9 -8 -7 -------- Run | Yrd Mat Min Exi Min Mat Fac Hostile Shots Fired 332 | . 20 22 . 14 69 207 Missed 106 | . 3 8 . 5 13 77 Damage Taken 3255 | . 137 138 . 96 778 2106 Core 1016 | . 52 65 . 21 178 700 Absorbed by Shields . | . . . . . . . Regen/Repaired (Parts) 84 | . . . . . . 84 Core Remaining (%) 70 | 100 . . . 44 67 . Volleys Fired 126 | . 11 16 . 7 53 39 Largest 2 | . 2 2 . 2 2 2 Hottest 130 | . 130 130 . 130 130 83 Shots Fired 222 | . 22 33 . 10 102 55 Gun 180 | . 22 33 . 10 98 17 Cannon 30 | . . . . . 4 26 Launcher 12 | . . . . . . 12 Special . | . . . . . . . Kinetic 50 | . . . . . 7 43 Thermal 124 | . 13 33 . 10 68 . Explosive 12 | . . . . . . 12 Electromagnetic 36 | . 9 . . . 27 . Robot Hit Streak 15 | . 5 4 . 6 14 15 Robot Miss Streak 9 | . 2 9 . 3 9 6 Penetration Max . | . . . . . . . Secondary Targets 5 | . 2 2 . . 1 . Max Gunslinging Chain 1 | . 1 1 . . 1 . Shots Hit Robots 189 | . 13 27 . 10 85 54 Core Hits 224 | . 12 31 . 15 105 61 Critical Kills 1 | . . . . . . 1 Critical Parts Destroyed 2 | . . . . . . 2 Critical Strikes 4 | . 1 . . . . 3 Burn 1 | . 1 . . . . . Smash 3 | . . . . . . 3 Melee Attacks 20 | . . . . . . 20 Impact 20 | . . . . . . 20 Slashing . | . . . . . . . Piercing . | . . . . . . . Sneak Attacks 4 | . . . . . . 4 Combat Hostiles . | . . . . . . . Follow-up Attacks . | . . . . . . . Damage Inflicted 5591 | . 168 262 . 147 1424 3590 Guns 2136 | . 168 262 . 147 1338 221 Cannons 787 | . . . . . 86 701 Explosions 1941 | . . . . . . 1941 Melee 727 | . . . . . . 727 Ramming . | . . . . . . . Kinetic 1043 | . . . . . 121 922 Thermal 1524 | . 112 262 . 147 1003 . Explosive 1941 | . . . . . . 1941 Electromagnetic 356 | . 56 . . . 300 . Impact 727 | . . . . . . 727 Slashing . | . . . . . . . Piercing . | . . . . . . . Highest Corruption 13 | . 2 2 2 2 2 13 Average Corruption 3 | . 2 2 2 2 1 4 Corruption Purged 2 | . . . . . 2 . Corruption Blocked . | . . . . . . . Effects 31 | . 2 6 . . 4 19 Message Errors 7 | . 2 . . . 2 3 Matter Fused 7 | . . 1 . . . 6 Heat Flow Errors 4 | . . 1 . . 1 2 Energy Discharges 2 | . . . . . . 2 Data Loss (minor) 4 | . . 2 . . . 2 Data Loss (major) 4 | . . 1 . . . 3 Misfires 2 | . . 1 . . . 1 Weapon Failures 1 | . . . . . 1 . Overload Shots . | . . . . . . . Overflow Damage 505 | . . . . . . 505 Projectiles 24 | . . . . . . 24 Explosions 23 | . . . . . . 23 Melee 458 | . . . . . . 458 Knockbacks 24 | . . . . . . 24 Impact 1 | . . . . . . 1 Kinetic 23 | . . . . . . 23 Secondary . | . . . . . . . Self-Inflicted Damage 60 | . . . . . . 60 Shots 3 | . . . . . . 3 Rammed . | . . . . . . . Targets Rammed . | . . . . . . . Kicked . | . . . . . . . Crushed . | . . . . . . . Highest Temperature 440 | . 179 440 . 408 101 231 Average Temperature 106 | . 64 133 . 222 34 121 Received Heat Transfer 390 | . 6 33 . 54 234 63 Effects 1 | . . 1 . . . . Shutdowns 1 | . . 1 . . . . Siege Activations . | . . . . . . . Robots Corrupted 1 | . . . . . . 1 Combat Hostiles . | . . . . . . . Parts Fried 7 | . . . . . 4 3 Impact Corruptions 11 | . . . . . . 11 Robots Melted . | . . . . . . . Combat Hostiles . | . . . . . . . Parts Melted 1 | . . . . 1 . . Heat Transferred 2104 | . 319 335 . 180 1270 . Parts Sabotaged . | . . . . . . . Parts Stolen . | . . . . . . . Parts Stripped . | . . . . . . . Power Chain Reactions . | . . . . . . . Alert | -11 -10 -10 -10 -9 -8 -7 ------- Run | Yrd Mat Min Exi Min Mat Fac Peak Influence 363 | . 251 267 . 70 363 240 Initial 136 | . . 97 . . 27 136 Average 133 | . 176 166 . 62 156 92 Maximum Alert Level 1 | . 1 1 . . 1 1 Low Security (%) 76 | 100 63 68 . 100 68 90 Level 1 23 | . 36 31 . . 31 9 Level 2 . | . . . . . . . Level 3 . | . . . . . . . Level 4 . | . . . . . . . Level 5 . | . . . . . . . High Security . | . . . . . . . Max Security . | . . . . . . . Squads Dispatched 13 | . 1 . . . 4 8 Investigation 2 | . . . . . . 2 Extermination 2 | . . . . . . 2 Reinforcement 3 | . 1 . . . 1 1 Assault . | . . . . . . . Garrison 6 | . . . . . 3 3 Intercept . | . . . . . . . Searches Triggered . | . . . . . . . Construction Impeded 1 | . . . . . . 1 Haulers Reinforced . | . . . . . . . Active Scanning Responses . | . . . . . . . Cargo Convoy Interrupts 1 | . . . . . . 1 Stealth | -11 -10 -10 -10 -9 -8 -7 --------- Run | Yrd Mat Min Exi Min Mat Fac Distress Signals 1 | . . . . . 1 . Communications Jammed . | . . . . . . . Distress Signals . | . . . . . . . Times Spotted 88 | . 10 10 . 3 36 29 Peak Tracking Total 11 | . 3 3 . 3 4 11 Tactical Retreats 8 | . . 2 . . 6 . Traps | -11 -10 -10 -10 -9 -8 -7 ------- Run | Yrd Mat Min Exi Min Mat Fac Traps Triggered 6 | . 1 . . . 2 3 Indirectly . | . . . . . . . Trap Hack Attempts . | . . . . . . . Triggered . | . . . . . . . Disarmed . | . . . . . . . Reprogrammed . | . . . . . . . Reused . | . . . . . . . Traps Extracted . | . . . . . . . Installed . | . . . . . . . Triggered . | . . . . . . . Machines | -11 -10 -10 -10 -9 -8 -7 ---------- Run | Yrd Mat Min Exi Min Mat Fac Machines Disabled 4 | . . . . . . 4 Max in Single Turn 1 | . . . . . . 1 Machines Repaired . | . . . . . . . Machines Dismantled . | . . . . . . . Machines Sabotaged . | . . . . . . . Overloaded Fab Kills . | . . . . . . . Hacking | -11 -10 -10 -10 -9 -8 -7 --------- Run | Yrd Mat Min Exi Min Mat Fac Machines Accessed 16 | . 5 1 . . 3 7 Terminals 8 | . 5 1 . . 2 . Fabricators 2 | . . . . . . 2 Repair Stations 3 | . . . . . 1 2 Recycling Units . | . . . . . . . Scanalyzers . | . . . . . . . Garrison Access 3 | . . . . . . 3 Total Hacks 34 | . 12 1 . . 4 17 Successful 12 | . 4 1 . . 2 5 Failed 22 | . 8 . . . 2 12 Catastrophic 6 | . 2 . . . . 4 Database Lockouts . | . . . . . . . Manual . | . . . . . . . Terminals 15 | . 12 1 . . 2 . Fabricators 3 | . . . . . . 3 Repair Stations 11 | . . . . . 2 9 Recycling Units . | . . . . . . . Scanalyzers . | . . . . . . . Garrison Access 5 | . . . . . . 5 Terminal Hacks 6 | . 4 1 . . 1 . Prototype ID Bank 1 | . 1 . . . . . Level Access Points 1 | . . 1 . . . . Alert Level 1 | . 1 . . . . . Unreport Threat 1 | . . . . . 1 . Dispatch Records 2 | . 2 . . . . . Fabricator Hacks 1 | . . . . . . 1 Network Status 1 | . . . . . . 1 Repair Station Hacks 5 | . . . . . 1 4 Scan Component 4 | . . . . . 1 3 Repair 1 | . . . . . . 1 Recycling Unit Hacks . | . . . . . . . Scanalyzer . | . . . . . . . Garrison Access Hacks . | . . . . . . . Unauthorized Hacks . | . . . . . . . Terminals . | . . . . . . . Fabricators . | . . . . . . . Repair Stations . | . . . . . . . Recycling Units . | . . . . . . . Scanalyzers . | . . . . . . . Garrison Access . | . . . . . . . Data Cores Recovered . | . . . . . . . Used . | . . . . . . . Hacking Detections 12 | . 4 . . . 2 6 Full Trace Events 2 | . . . . . . 2 Feedback Events . | . . . . . . . Feedback Blocked . | . . . . . . . Robot Schematics Acquired . | . . . . . . . Robots Built . | . . . . . . . Authchips . | . . . . . . . Time . | . . . . . . . Total Robot Build Rating . | . . . . . . . Part Schematics Acquired . | . . . . . . . Parts Built . | . . . . . . . Authchips . | . . . . . . . Time . | . . . . . . . Total Part Build Rating . | . . . . . . . Parts Repaired 1 | . . . . . . 1 Time 22 | . . . . . . 22 Parts Recycled . | . . . . . . . Recycled Matter . | . . . . . . . Retrieved Matter . | . . . . . . . Retrieved Components . | . . . . . . . Parts Scanalyzed . | . . . . . . . Part Schematics Acquired . | . . . . . . . Parts Damaged . | . . . . . . . Bothacking | -11 -10 -10 -10 -9 -8 -7 ------------ Run | Yrd Mat Min Exi Min Mat Fac Used RIF Installer . | . . . . . . . Robots Hacked . | . . . . . . . Non-combat . | . . . . . . . Combat . | . . . . . . . Robot Hacks Applied . | . . . . . . . Relay Couplers Released . | . . . . . . . Fabnet Peak Effective % . | . . . . . . . Robots Rewired . | . . . . . . . Allies Hacked . | . . . . . . . Hacks Repelled . | . . . . . . . Allies | -11 -10 -10 -10 -9 -8 -7 -------- Run | Yrd Mat Min Exi Min Mat Fac Total Allies 3 | . . . . . . 3 Largest Group 3 | . . . . . . 3 Highest-Rated Group 93 | . . . . . . 93 Highest-Rated Ally 31 | . . . . . . 31 Total Orders . | . . . . . . . Ally Attacks 15 | . . . . . . 15 Total Damage 213 | . . . . . . 213 Kills 4 | . . . . . . 4 Allies Corrupted . | . . . . . . . Allies Melted . | . . . . . . . Intel | -11 -10 -10 -10 -9 -8 -7 ------- Run | Yrd Mat Min Exi Min Mat Fac Robot Analysis Total . | . . . . . . . Derelict Logs Recovered 2 | . . 1 . 1 . . Drone Launches . | . . . . . . . Drone Recoveries . | . . . . . . . Exploration | -11 -10 -10 -10 -9 -8 -7 ------------- Run | Yrd Mat Min Exi Min Mat Fac Turns Passed 4898 | 57 380 581 144 72 2038 1626 Spaces Moved 3229 | 55 376 533 160 54 998 1053 Core 52 | 12 . . . . . 40 Treads . | . . . . . . . Legs . | . . . . . . . Wheels 3177 | 43 376 533 160 54 998 1013 Hover . | . . . . . . . Flight . | . . . . . . . Fastest Speed 50 | 50 80 80 90 90 90 50 Average Speed 94 | 73 80 88 90 90 96 102 Slowest Speed 105 | 80 80 90 90 90 105 105 Overloaded Moves . | . . . . . . . Propulsion Burnouts . | . . . . . . . Robots Hopped . | . . . . . . . Cave-ins Triggered . | . . . . . . . Exploration Rate (%) 46 | 4 61 95 56 17 68 25 Regions Visited 6 Branch Regions 3 Pre-discovered Areas . | . . . . . . . Known Exits Taken 1 | . . . . 1 . . Unknown Exits Taken 5 | 1 1 1 1 . 1 . Scrap Searched 3 | . . 3 . . . . Spaces Dug 7 | . . . . . . 7 Terrain Destroyed 58 | . . . . . . 58 Melee 7 | . . . . . . 7 Projectile 1 | . . . . . . 1 AOE 50 | . . . . . . 50 Terrain Rammed . | . . . . . . . Walls Destroyed . | . . . . . . . Machines Disabled . | . . . . . . . Actions | -11 -10 -10 -10 -9 -8 -7 --------- Run | Yrd Mat Min Exi Min Mat Fac Total 4828 | 72 434 609 159 68 1974 1512 Wait 1285 | . 18 54 . 5 861 347 Move 3223 | 54 375 532 159 53 997 1053 Hop . | . . . . . . . Pick Up 66 | 9 16 2 . 1 25 13 Fast Attach . | . . . . . . . Attach 35 | 7 4 . . . 14 10 Detach . | . . . . . . . Swap 31 | . 3 3 . 1 8 16 Drop 42 | 2 7 2 . 1 16 14 Fire 126 | . 11 16 . 7 53 39 Melee 20 | . . . . . . 20 Ram . | . . . . . . . Kick . | . . . . . . . Crush . | . . . . . . . Escape Stasis . | . . . . . . . Rewire . | . . . . . . . Trap . | . . . . . . . Miscellaneous . | . . . . . . . Route ------- -11/Scrapyard -10/Materials (discovered 2 exits: *Mat / *Min) -10/Mines (discovered 3 exits: *Mat x2 / [*Exi]) -10/Exiles -9/Mines (discovered 2 exits: *Mat x2) -8/Materials -7/Factory History --------- Turn | Location | Event 10 | -11/Scrapyard | Discovered new exit (range 16) 58 | -11/Scrapyard | Entered Materials 99 | -10/Materials | Discovered new exit (range 10) 309 | -10/Materials | Build established: Mutant 395 | -10/Materials | Discovered new exit (range 16) 438 | -10/Materials | Entered Mines 585 | -10/Mines | Discovered new exit (range 9) 618 | -10/Mines | Identified exit to Materials 699 | -10/Mines | Found a damaged Exp. Sensor Array with a note attached 885 | -10/Mines | Found a hidden stash of uninstalled traps 937 | -10/Mines | Learned Materials non-interactive machine intel 1015 | -10/Mines | Deemed a non-threat by the Exiles lab entrance 1015 | -10/Mines | Discovered new exit (range 5) 1019 | -10/Mines | Entered Exiles 1040 | -10/Exiles | Met 8R-AWN 1057 | -10/Exiles | Met EX-HEX 1083 | -10/Exiles | Met EX-BIN 1094 | -10/Exiles | Aligned with FarCom system 1095 | -10/Exiles | Given EX-Vault access code 1121 | -10/Exiles | Met EX-DEC 1154 | -10/Exiles | Discovered new exit (range 10) 1163 | -10/Exiles | Entered Mines 1166 | -9/Mines | Core integrity fell below 50% 1225 | -9/Mines | Identified exit to Materials 1230 | -9/Mines | Discovered exit to Materials (range 5) 1235 | -9/Mines | Entered Materials 1235 | -8/Materials | Evolved 4 slots: Utility x4 1236 | -8/Materials | Loaded intel: 29 non-interactive machine locations 2367 | -8/Materials | Garrison activated, responded to threat 3130 | -8/Materials | Discovered new exit (range 4) 3273 | -8/Materials | Entered Factory 3273 | -7/Factory | Evolved 2 slots: Power x1, Utility x1 3363 | -7/Factory | Allied Derelicts emerged from ambush trap array 3455 | -7/Factory | Garrison activated, responded to threat 3835 | -7/Factory | Build established: Scavenger-Mutant 4008 | -7/Factory | Repaired Gauss Rifle 4204 | -7/Factory | Build established: Mutant 4814 | -7/Factory | Cargo convoy interrupted 4845 | -7/Factory | System corruption reached 10% 4868 | -7/Factory | Core integrity fell below 50% 4888 | -7/Factory | Lost 6 parts (2n2u2w) 4893 | -7/Factory | Core integrity fell below 20% 4899 | -7/Factory | Destroyed by S-27 Virus with Autogun Last Messages --------------- R-06 Scavenger collects Flak Gun. K-01 Serf collects debris. R-06 Scavenger collects Imp. Heat Sink. U-05 Engineer builds a Wall. K-01 Serf collects debris. R-06 Scavenger collects Sml. Storage Unit. System corrupted: Matter fused (-8). Acquired 98 matter. U-05 Engineer lays Concrete. K-01 Serf collects debris. R-06 Scavenger collects Hvy. Rocket Launcher. K-01 Serf collects debris. Adv. Targeting Computer destroyed. S-27 Virus misfires. S-27 Virus destroyed. I-36 Angel suffers critical hit (Smash). I-36 Angel destroyed. P-60 Hacker suffers critical hit (Smash). Destroyed Mic. Nuclear Core. P-60 Hacker system corrupted by crushing effect. Map ----- +----------------------------------------------------+ | """ #??????????????????????# # | | #??????????????????????# ######/#### | | #??????????????????????# ###### ##?? | | #??????????????????????# ### | | #??????????????????????# ^ ]]! | | ######+######??????????????????????# ^]] | | ##?# ##############???################## ^ ]! | | !?# # #???# #??????### | | # # """ """ #???# #??????# | | ! # + """ ""R" #???# ######## | | + ^ ^# """ "" " #???# %%% | | # ^ # #???# % | | #### ####+############# "%%" | | ## /! | | ## ! | | ## #################### | | ## #??????????????????# | | ## #??????????????????# | | ########### #####??????????????????# | | ! # #??????????????????????+ | | ! """ # ######T #??????????????# | | """ # ????????? | | [ """ # """" ########???????????????? | | % %# """" ##+###########????????????? | | %%=%# """" #p%[%p #????????????? | | ######+#### """" #p@= s #????????????? | | ###### #### """" #i """ """" #????????????? | | ^ g """" # " ""r"""" #????????????? | | ^ gg # """" """" #????????????? | | ^ """ """" # """"% " ###??????????? | | """ """" + """ # #??????????? | | """ """" #r"" ##???????????? | | #### """" # !]##???????????? | | # "" """" #k ! ]"#???????????? | | # F" """" # #???????????? | | # " # ##???????????? | | # "" """"o # # #????????????? | | # != """" # #????????????? | | # ! ! """" # #????????????? | | ######## """" # T #????????????? | | ##?##??? """" # " #????????????? | | #??????? """" ? ?????????????? | | ####??????? ? """" """" ?????????????? | | ??????????????! ? ?""" """" ?????????????? | | ?????????????? ? ???"????" ?????????????? | | ??????????????? ??? ????????" ?????????????? | | ???????????????? "" ???????????? ?????????????? | | ????????????????? ""?????????????? ?????????????? | | ????????????????? ??????????????????????????????? | | ??????????????????"??????????????????????????????? | +----------------------------------------------------+ Best States ------------- Heat Dissipation 75 Energy Generation 21 Energy Capacity 325 Matter Stores 300 Matter Capacity 300 Sight Range 18 Terrain Scan Density 10 Armor Coverage 600 Evasion (%) 50 Targeting Accuracy 16 Particle Charging 15 Item Schematics ----------------- None Robot Schematics ------------------ None Fabricated ------------ Nothing Alien Tech Used ----------------- None Achievements -------------- Maybe Next Time I'll Detach My Launcher Challenges ------------ None Game ------ Seed TeslaLaserThruster Manual? 0 Play Time 00:48:43 Cumulative 24.6 hours Start 2025.05.02 @ 20:41:11 End 2025.05.03 @ 20:29:58 Sessions 3 Manual Loads 0 Difficulty Rogue Special Mode None Game No. 24 Rogue 24 Adventurer 0 Explorer 0 Win Type - Total 0 Types 0/0/0/0/0/0/0/0/0 Lore% 17 Gallery% 23 Achievement% 19 Wizard Run 0 Options --------- Layout 1 ASCII 0 Keyboard 0 Movement Mouse Keybinds 0 Fullscreen 1 Font 24/Smallcaps Map View 50x35 Zoom Use 0% Tactical HUD 0 Map Filters NONE Filters NONE Steam 1 RUN: cf40dc31-8e4b-4cc2-aad9-83af8ea7719d